fUST/lending_fUST_20240412
["ID","MTS","AMOUNT","RATE_DAILY","PERIOD"]
[322229754,1712903441115,-500.0,0.00027671,2]
[322229755,1712903441124,-500.0,0.00027671,2]
[322229756,1712903441133,-500.0,0.00027671,2]
[322229757,1712903441142,-345.8592173,0.00027671,2]
[322229758,1712903441156,-154.1407827,0.00027671,2]
[322229759,1712903441165,-471.65492899,0.00027671,2]
[322229760,1712903441174,-500.0,0.00027671,2]
[322229761,1712903441183,-500.0,0.00027671,2]
[322229762,1712903441192,-515.96947054,0.00027671,2]
[322229763,1712903441202,-61.7647371,0.00027671,2]
[322229839,1712903446190,-3083.54,0.00027397,2]
[322229840,1712903446200,-444.3850364,0.00027671,2]
[322229841,1712903446209,-500.0,0.00027671,2]
[322229842,1712903446219,-500.0,0.00027671,2]
[322229843,1712903446228,-500.0,0.00027671,2]
[322229844,1712903446237,-504.00390215,0.00027671,2]
[322229845,1712903446246,-501.92851274,0.00027671,2]
[322229846,1712903446257,-587.70649651,0.00027671,2]
[322229847,1712903446265,-500.0,0.00027671,2]
[322229848,1712903446274,-501.1960688,0.00027671,2]
[322229849,1712903446283,-504.10938534,0.00027671,2]
[322229850,1712903446293,-500.0,0.00027671,2]
[322229851,1712903446302,-500.0,0.00027671,2]
[322229852,1712903446311,-500.0,0.00027671,2]
[322229853,1712903446319,-500.0,0.00027671,2]
[322229855,1712903446328,-151.61068951,0.00027671,2]
[322229857,1712903446338,-500.0,0.00027671,2]
[322229859,1712903446347,-500.0,0.00027671,2]
[322229861,1712903446356,-504.02472352,0.00027671,2]
[322229862,1712903446365,-500.0,0.00027671,2]
[322229864,1712903446374,-500.0,0.00027671,2]
[322229865,1712903446383,-500.0,0.00027671,2]
[322229866,1712903446392,-500.0,0.00027671,2]
[322229867,1712903446401,-500.0,0.00027671,2]
[322229868,1712903446410,-918.72,0.00027671,2]
[322229869,1712903446419,-500.0,0.00027671,2]
[322229870,1712903446428,-500.0,0.00027671,2]
[322229871,1712903446437,-345.38173274,0.00027671,2]
[322229872,1712903446447,-500.0,0.00027671,2]
[322229873,1712903446458,-500.0,0.00027671,2]
[322229874,1712903446468,-500.0,0.00027671,2]
[322229875,1712903446477,-500.0,0.00027671,2]
[322229876,1712903446487,-500.0,0.00027671,2]
[322229877,1712903446496,-500.0,0.00027671,2]
[322229878,1712903446506,-500.0,0.00027671,2]
[322229879,1712903446515,-479.71687507,0.00027671,2]
[322229880,1712903446525,-389.73581091,0.00027671,2]
[322229881,1712903540438,60.19744932,0.00025,30]
[322229882,1712903540459,6100.0,0.00025,30]
[322229883,1712903540484,3839.80255068,0.00025,30]
[322229884,1712903551187,7209.52,0.00025,30]
[322229885,1712903632654,3873.7202795,0.000251,7]
[322229886,1712903865719,200.0,0.00024658,15]
[322229934,1712904381733,613.70983481,0.00023,2]
[322229962,1712904423183,250.0,0.00023479,2]
[322229967,1712904432082,200.0,0.00024658,15]
[322229969,1712904436096,-282.52694059,0.00024171,2]
[322229970,1712904436117,-407.97119397,0.00024172,2]
[322229971,1712904436138,-1308.46081651,0.00024172,2]
[322229972,1712904436160,-300.0,0.00024172,2]
[322229974,1712904436180,-300.0,0.00024172,2]
[322229975,1712904436200,-432.01240451,0.00024173,2]
[322229994,1712904545292,-6486.84668192,0.00024173,2]
[322229995,1712904545315,-300.0,0.00024183,2]
[322229996,1712904545335,-300.0,0.00024183,2]
[322229997,1712904545355,-5086.15921315,0.00024184,2]
[322229999,1712904552185,-19813.84078685,0.00024184,2]
[322230000,1712904552207,-156.69769201,0.0002434,2]
[322230001,1712904552227,-854.104188,0.00024444,2]
[322230002,1712904552249,-7855.89494356,0.00025,2]
[322230042,1712904638287,-200.0,0.00025184,2]
[322230043,1712904638300,-2687.0742034,0.00025398,2]
[322230044,1712904638311,-427.052094,0.00026142,2]
[322230045,1712904638325,-176.94358,0.00026235,2]
[322230046,1712904638340,-181.0,0.00027,2]
[322230047,1712904638353,-511.77454035,0.00027295,2]
[322230048,1712904638365,-511.77454035,0.00027296,2]
[322230049,1712904638377,-511.77454035,0.00027296,2]
[322230050,1712904638388,-511.77454035,0.00027297,2]
[322230051,1712904638402,-511.77454035,0.00027297,2]
[322230052,1712904638413,-300.0,0.00027299,2]
[322230053,1712904638425,-300.0,0.00027299,2]
[322230054,1712904638436,-5169.60777199,0.000273,2]
[322230073,1712904639175,-2835.45329501,0.000273,2]
[322230075,1712904639184,-188.68019824,0.00027395,2]
[322230077,1712904639193,-155.53591284,0.00027395,2]
[322230079,1712904639202,-562.9343756,0.00027395,2]
[322230081,1712904639211,-3736.78008316,0.00027395,2]
[322230083,1712904639220,-1931.15529922,0.00027395,2]
[322230085,1712904639230,-5784.90920352,0.00027395,2]
[322230087,1712904639239,-454.32342955,0.00027395,2]
[322230089,1712904639248,-279.27665999,0.00027395,2]
[322230090,1712904639258,-261.79351966,0.00027395,2]
[322230092,1712904639267,-446.71500113,0.00027395,2]
[322230094,1712904639282,-154.9690062,0.00027395,2]
[322230096,1712904639291,-853.76806711,0.00027395,2]
[322230098,1712904639301,-887.0189653,0.00027396,2]
[322230100,1712904639310,-240.74685142,0.00027396,2]
[322230102,1712904639320,-155.43713096,0.00027396,2]
[322230104,1712904639329,-8420.36955308,0.00027396,2]
[322230106,1712904639338,-640.02336203,0.00027396,2]
[322230108,1712904639347,-246.97172665,0.00027396,2]
[322230110,1712904639356,-330.39107966,0.00027396,2]
[322230111,1712904639366,-218.55635655,0.00027396,2]
[322230113,1712904639375,-500.0,0.00027397,2]
[322230114,1712904639384,-500.0,0.00027397,2]
[322230115,1712904639394,-277.76774563,0.00027397,2]
[322230116,1712904639402,-500.0,0.00027397,2]
[322230117,1712904639412,-500.0,0.00027397,2]
[322230118,1712904639421,-500.0,0.00027397,2]
[322230119,1712904639431,-500.0,0.00027397,2]
[322230120,1712904639440,-883.83,0.00027397,2]
[322230121,1712904639450,-500.0,0.00027397,2]
[322230122,1712904639459,-500.0,0.00027397,2]
[322230123,1712904639469,-500.0,0.00027397,2]
[322230124,1712904639478,-500.0,0.00027397,2]
[322230125,1712904639487,-390.67646101,0.00027397,2]
[322230126,1712904639497,-500.0,0.00027397,2]
[322230127,1712904639507,-500.0,0.00027397,2]
[322230128,1712904639516,-168.98305112,0.00027397,2]
[322230129,1712904639528,-258.29226121,0.00027397,2]
[322230130,1712904639537,-501.01601647,0.00027397,2]
[322230131,1712904639547,-501.33363956,0.00027397,2]
[322230132,1712904639557,-556.97339837,0.00027397,2]
[322230133,1712904639567,-500.68972858,0.00027397,2]
[322230134,1712904639576,-501.93147343,0.00027397,2]
[322230135,1712904639585,-501.42239017,0.00027397,2]
[322230137,1712904639595,-500.0,0.00027397,2]
[322230139,1712904639604,-186.44570129,0.00027397,2]
[322230140,1712904639613,-500.0,0.00027397,2]
[322230141,1712904639623,-500.0,0.00027397,2]
[322230142,1712904639632,-500.0,0.00027397,2]
[322230143,1712904639641,-218.28067392,0.00027397,2]
[322230144,1712904639650,-501.69922697,0.00027397,2]
[322230145,1712904639659,-502.80133101,0.00027397,2]
[322230146,1712904639668,-165.05427389,0.00027397,2]
[322230147,1712904639677,-500.0,0.00027397,2]
[322230148,1712904639686,-500.0,0.00027397,2]
[322230149,1712904639695,-574.28345912,0.00027397,2]
[322230150,1712904639704,-500.0,0.00027397,2]
[322230151,1712904639713,-500.0,0.00027397,2]
[322230152,1712904639722,-500.0,0.00027397,2]
[322230153,1712904639731,-500.0,0.00027397,2]
[322230154,1712904639740,-505.47466413,0.00027397,2]
[322230155,1712904639750,-500.0,0.00027397,2]
[322230156,1712904639760,-500.0,0.00027397,2]
[322230157,1712904639769,-500.0,0.00027397,2]
[322230158,1712904639780,-500.0,0.00027397,2]
[322230159,1712904639789,-500.0,0.00027397,2]
[322230160,1712904639797,-280.740356,0.00027397,2]
[322230161,1712904639806,-500.0,0.00027397,2]
[322230162,1712904639815,-1084.66,0.00027397,2]
[322230163,1712904639824,-500.0,0.00027397,2]
[322230164,1712904639835,-503.46078899,0.00027397,2]
[322230165,1712904639844,-500.0,0.00027397,2]
[322230166,1712904639853,-502.21627357,0.00027397,2]
[322230167,1712904639862,-500.0,0.00027397,2]
[322230168,1712904639871,-502.15107291,0.00027397,2]
[322230169,1712904639880,-500.0,0.00027397,2]
[322230170,1712904639889,-502.44812612,0.00027397,2]
[322230171,1712904639898,-500.0,0.00027397,2]
[322230172,1712904639908,-467.42480405,0.00027397,2]
[322230174,1712904639918,-500.97041189,0.00027397,14]
[322230175,1712904639928,-151.0,0.00027397,2]
[322230176,1712904639937,-500.0,0.00027397,2]
[322230177,1712904639946,-500.0,0.00027397,2]
[322230178,1712904639955,-151.0,0.00027397,2]
[322230179,1712904639964,-538.49,0.00027397,2]
[322230180,1712904639973,-505.83478662,0.00027397,2]
[322230181,1712904639982,-500.0,0.00027397,2]
[322230182,1712904639991,-1570.93,0.00027397,2]
[322230183,1712904640000,-500.0,0.00027397,2]
[322230184,1712904640008,-500.0,0.00027397,2]
[322230185,1712904640018,-452.37787008,0.00027397,2]
[322230186,1712904640030,-500.0,0.00027397,2]
[322230187,1712904640039,-500.0,0.00027397,2]
[322230188,1712904640048,-500.0,0.00027397,2]
[322230189,1712904640057,-353.74877359,0.00027397,2]
[322230190,1712904640066,-500.0,0.00027397,2]
[322230191,1712904640075,-500.0,0.00027397,2]
[322230192,1712904640085,-345.84964995,0.00027397,2]
[322230193,1712904640096,-500.0,0.00027397,2]
[322230194,1712904640108,-500.0,0.00027397,2]
[322230195,1712904640118,-151.0,0.00027397,2]
[322230196,1712904640130,-151.0,0.00027397,2]
[322230197,1712904640140,-500.0,0.00027397,2]
[322230198,1712904640150,-500.0,0.00027397,2]
[322230199,1712904640159,-393.3530603,0.00027397,2]
[322230200,1712904640171,-500.0,0.00027397,2]
[322230201,1712904640180,-500.0,0.00027397,2]
[322230202,1712904640189,-500.0,0.00027397,2]
[322230204,1712904640199,-500.0,0.00027397,2]
[322230205,1712904640211,-500.0,0.00027397,2]
[322230206,1712904640223,-500.0,0.00027397,2]
[322230207,1712904640233,-500.0,0.00027397,2]
[322230208,1712904640243,-181.98398192,0.00027397,2]
[322230209,1712904640254,-500.0,0.00027397,2]
[322230210,1712904640265,-500.0,0.00027397,2]
[322230211,1712904640276,-500.0,0.00027397,2]
[322230212,1712904640285,-500.0,0.00027397,2]
[322230213,1712904640294,-500.0,0.00027397,2]
[322230214,1712904640303,-500.0,0.00027397,2]
[322230215,1712904640313,-151.0,0.00027397,2]
[322230216,1712904640322,-151.0,0.00027397,2]
[322230217,1712904640331,-500.0,0.00027397,2]
[322230218,1712904640340,-500.0,0.00027397,2]
[322230219,1712904640349,-500.0,0.00027397,2]
[322230220,1712904640358,-500.0,0.00027397,2]
[322230221,1712904640368,-500.0,0.00027397,2]
[322230222,1712904640377,-500.0,0.00027397,2]
[322230223,1712904640386,-613.38387006,0.00027397,2]
[322230224,1712904640395,-500.0,0.00027397,2]
[322230225,1712904640405,-502.23059441,0.00027397,2]
[322230226,1712904640414,-678.93,0.00027397,2]
[322230227,1712904640424,-500.0,0.00027397,2]
[322230228,1712904640433,-500.0,0.00027397,2]
[322230229,1712904640442,-500.0,0.00027397,2]
[322230230,1712904640452,-500.0,0.00027397,2]
[322230231,1712904640462,-500.0,0.00027397,2]
[322230232,1712904640471,-416.71649842,0.00027397,2]
[322230233,1712904640480,-500.0,0.00027397,2]
[322230234,1712904640489,-500.0,0.00027397,2]
[322230235,1712904640499,-151.0,0.00027397,2]
[322230236,1712904640507,-500.0,0.00027397,2]
[322230237,1712904640517,-1493.32,0.00027397,2]
[322230238,1712904640530,-504.44726382,0.00027397,2]
[322230239,1712904640539,-2017.45,0.00027397,2]
[322230240,1712904640548,-500.0,0.00027397,2]
[322230241,1712904640557,-503.43850233,0.00027397,2]
[322230242,1712904640566,-500.0,0.00027397,2]
[322230243,1712904640576,-500.0,0.00027397,2]
[322230244,1712904640586,-505.17227875,0.00027397,2]
[322230245,1712904640595,-500.0,0.00027397,2]
[322230246,1712904640604,-1052.14,0.00027397,2]
[322230247,1712904640613,-500.0,0.00027397,2]
[322230248,1712904640622,-1364.16,0.00027397,2]
[322230249,1712904640631,-500.0,0.00027397,2]
[322230250,1712904640640,-500.0,0.00027397,2]
[322230251,1712904640649,-500.0,0.00027397,2]
[322230252,1712904640658,-153.54236246,0.00027397,2]
[322230253,1712904640666,-500.0,0.00027397,2]
[322230254,1712904640676,-505.31374382,0.00027397,2]
[322230255,1712904640685,-505.17643698,0.00027397,2]
[322230256,1712904640694,-500.0,0.00027397,2]
[322230257,1712904640703,-500.0,0.00027397,2]
[322230258,1712904640712,-500.0,0.00027397,2]
[322230259,1712904640721,-500.0,0.00027397,2]
[322230260,1712904640730,-227.67976332,0.00027397,2]
[322230261,1712904640740,-551.83388536,0.00027397,2]
[322230262,1712904640749,-500.0,0.00027397,2]
[322230263,1712904640758,-502.69510998,0.00027397,2]
[322230264,1712904640767,-1100.7,0.00027397,2]
[322230265,1712904640777,-500.0,0.00027397,2]
[322230266,1712904640786,-500.0,0.00027397,2]
[322230267,1712904640795,-500.0,0.00027397,2]
[322230268,1712904640804,-500.0,0.00027397,2]
[322230269,1712904640813,-500.0,0.00027397,2]
[322230270,1712904640823,-151.0,0.00027397,2]
[322230271,1712904640832,-1282.68,0.00027397,2]
[322230272,1712904640841,-500.0,0.00027397,2]
[322230273,1712904640850,-500.0,0.00027397,2]
[322230274,1712904640860,-500.0,0.00027397,2]
[322230275,1712904640870,-500.0,0.00027397,2]
[322230276,1712904640952,-500.0,0.00027397,2]
[322230277,1712904640961,-500.0,0.00027397,2]
[322230278,1712904640971,-500.0,0.00027397,2]
[322230279,1712904640980,-502.18985829,0.00027397,2]
[322230280,1712904640990,-500.0,0.00027397,2]
[322230281,1712904641000,-162.714672,0.00027397,2]
[322230282,1712904641010,-500.0,0.00027397,2]
[322230283,1712904641019,-500.0,0.00027397,2]
[322230284,1712904641030,-4396.63,0.00027397,2]
[322230285,1712904641039,-621.58,0.00027397,2]
[322230286,1712904641049,-521.1666086,0.00027397,2]
[322230287,1712904641058,-3006.67,0.00027397,2]
[322230288,1712904641067,-500.0,0.00027397,2]
[322230289,1712904641076,-500.0,0.00027397,2]
[322230290,1712904641086,-1175.79,0.00027397,2]
[322230291,1712904641102,-500.0,0.00027397,2]
[322230292,1712904641111,-500.0,0.00027397,2]
[322230293,1712904641120,-151.0,0.00027397,2]
[322230294,1712904641130,-500.0,0.00027397,2]
[322230295,1712904641140,-2391.34,0.00027397,2]
[322230296,1712904641149,-500.0,0.00027397,2]
[322230297,1712904641160,-464.93968069,0.00027397,2]
[322230298,1712904641171,-1801.17,0.00027397,2]
[322230299,1712904641181,-12624.19,0.00027397,2]
[322230300,1712904641191,-506.21748848,0.00027397,2]
[322230301,1712904641201,-501.1112232,0.00027397,2]
[322230302,1712904641211,-503.32081109,0.00027397,2]
[322230303,1712904641220,-386.719727,0.00027397,2]
[322230304,1712904641230,-1423.78,0.00027397,2]
[322230305,1712904641239,-386.719727,0.00027397,2]
[322230306,1712904641248,-151.0,0.00027397,2]
[322230307,1712904641257,-386.719727,0.00027397,2]
[322230308,1712904641266,-386.719727,0.00027397,2]
[322230309,1712904641276,-500.0,0.00027397,2]
[322230310,1712904641285,-500.0,0.00027397,2]
[322230311,1712904641295,-386.719727,0.00027397,2]
[322230312,1712904641304,-386.719727,0.00027397,2]
[322230313,1712904641314,-500.0,0.00027397,2]
[322230314,1712904641323,-386.719727,0.00027397,2]
[322230315,1712904641333,-386.719727,0.00027397,2]
[322230316,1712904641342,-151.0,0.00027397,2]
[322230317,1712904641352,-500.0,0.00027397,2]
[322230318,1712904641361,-500.0,0.00027397,2]
[322230319,1712904641371,-292.50012532,0.00027397,2]
[322230320,1712904641381,-1202.88,0.00027397,2]
[322230321,1712904641390,-552.2,0.00027397,2]
[322230322,1712904641399,-500.61800452,0.00027397,2]
[322230323,1712904641409,-500.0,0.00027397,2]
[322230324,1712904641419,-500.0,0.00027397,2]
[322230325,1712904641429,-500.0,0.00027397,2]
[322230326,1712904641439,-1590.85,0.00027397,2]
[322230327,1712904641450,-500.0,0.00027397,2]
[322230328,1712904641460,-500.0,0.00027397,2]
[322230329,1712904641471,-1170.49,0.00027397,2]
[322230330,1712904641481,-500.0,0.00027397,2]
[322230331,1712904641491,-1173.01,0.00027397,2]
[322230332,1712904641500,-15036.61,0.00027397,2]
[322230333,1712904641510,-502.65307009,0.00027397,2]
[322230334,1712904641519,-500.0,0.00027397,2]
[322230335,1712904641531,-500.0,0.00027397,2]
[322230336,1712904641541,-300.0,0.00027397,2]
[322230337,1712904641552,-500.0,0.00027397,2]
[322230338,1712904641561,-507.36606183,0.00027397,2]
[322230339,1712904641570,-500.0,0.00027397,2]
[322230340,1712904641579,-504.95897543,0.00027397,2]
[322230341,1712904641589,-549.07797271,0.00027397,2]
[322230342,1712904641598,-500.0,0.00027397,2]
[322230343,1712904641607,-153.243674,0.00027397,2]
[322230344,1712904641617,-3250.61,0.00027397,2]
[322230345,1712904641626,-500.0,0.00027397,2]
[322230346,1712904641635,-500.0,0.00027397,2]
[322230347,1712904641644,-500.0,0.00027397,2]
[322230348,1712904641653,-609.9,0.00027397,2]
[322230349,1712904641662,-500.0,0.00027397,2]
[322230350,1712904641671,-996.85,0.00027397,2]
[322230351,1712904641680,-500.0,0.00027397,2]
[322230352,1712904641689,-500.0,0.00027397,2]
[322230353,1712904641699,-500.0,0.00027397,2]
[322230354,1712904641708,-500.0,0.00027397,2]
[322230355,1712904641717,-500.0,0.00027397,2]
[322230356,1712904641726,-505.55622236,0.00027397,2]
[322230357,1712904641735,-500.0,0.00027397,2]
[322230358,1712904641744,-500.0,0.00027397,2]
[322230359,1712904641754,-500.0,0.00027397,2]
[322230360,1712904641763,-1316.15,0.00027397,2]
[322230361,1712904641773,-202.284178,0.00027397,2]
[322230362,1712904641784,-202.284178,0.00027397,2]
[322230363,1712904641793,-202.284178,0.00027397,2]
[322230364,1712904641802,-202.284178,0.00027397,2]
[322230365,1712904641811,-202.284178,0.00027397,2]
[322230366,1712904641821,-202.284178,0.00027397,2]
[322230367,1712904641831,-202.284178,0.00027397,2]
[322230368,1712904641840,-202.284178,0.00027397,2]
[322230369,1712904641849,-202.284178,0.00027397,2]
[322230370,1712904641859,-202.284178,0.00027397,2]
[322230371,1712904641869,-500.0,0.00027397,2]
[322230372,1712904641878,-387.5996027,0.00027397,2]
[322230373,1712904641888,-2347.27,0.00027397,2]
[322230374,1712904641897,-506.72686497,0.00027397,2]
[322230375,1712904641906,-4771.49,0.00027397,2]
[322230376,1712904641916,-500.0,0.00027397,2]
[322230377,1712904641925,-500.0,0.00027397,2]
[322230378,1712904641935,-500.0,0.00027397,2]
[322230379,1712904641946,-500.0,0.00027397,2]
[322230380,1712904641956,-500.0,0.00027397,2]
[322230381,1712904641965,-1213.11,0.00027397,2]
[322230382,1712904641973,-171.100761,0.00027397,2]
[322230383,1712904641983,-171.100761,0.00027397,2]
[322230384,1712904641993,-171.100761,0.00027397,2]
[322230385,1712904642002,-171.100761,0.00027397,2]
[322230386,1712904642012,-6115.45,0.00027397,2]
[322230387,1712904642021,-213.32376366,0.00027397,2]
[322230388,1712904642032,-151.0,0.00027397,2]
[322230389,1712904642041,-171.100761,0.00027397,2]
[322230390,1712904642050,-151.000001,0.00027397,2]
[322230391,1712904642058,-171.100761,0.00027397,2]
[322230392,1712904642068,-171.100761,0.00027397,2]
[322230393,1712904642077,-171.100761,0.00027397,2]
[322230394,1712904642087,-1749.46,0.00027397,2]
[322230395,1712904642098,-500.0,0.00027397,2]
[322230396,1712904642109,-500.0,0.00027397,2]
[322230397,1712904642119,-500.0,0.00027397,2]
[322230398,1712904642128,-505.04673356,0.00027397,2]
[322230399,1712904642137,-776.21,0.00027397,2]
[322230400,1712904642146,-500.0,0.00027397,2]
[322230401,1712904642155,-500.0,0.00027397,2]
[322230402,1712904642165,-1753.54,0.00027397,2]
[322230403,1712904642175,-1129.16,0.00027397,2]
[322230404,1712904642184,-151.0,0.00027397,2]
[322230405,1712904642193,-151.0,0.00027397,2]
[322230406,1712904642202,-500.0,0.00027397,2]
[322230407,1712904642212,-500.0,0.00027397,2]
[322230408,1712904642221,-299.68387726,0.00027397,2]
[322230409,1712904642230,-500.0,0.00027397,2]
[322230410,1712904642239,-342.82346828,0.00027397,2]
[322230411,1712904642248,-151.0,0.00027397,2]
[322230412,1712904642257,-151.0,0.00027397,2]
[322230413,1712904642266,-252.008329,0.00027397,2]
[322230414,1712904642277,-166.666666,0.00027397,2]
[322230415,1712904642286,-1006.67455843,0.00027632,2]
[322230416,1712904642295,-2609.12642141,0.00027669,2]
[322230417,1712904642304,-242.65723842,0.00027669,2]
[322230418,1712904642314,-652.02347168,0.00027669,2]
[322230419,1712904642324,-176.65160974,0.00027669,2]
[322230420,1712904642333,-430.25029913,0.00027669,2]
[322230421,1712904642342,-227.35845764,0.00027669,2]
[322230422,1712904642351,-973.50518926,0.00027669,2]
[322230423,1712904642362,-324.76490035,0.00027669,2]
[322230424,1712904642372,-317.69625636,0.0002767,2]
[322230425,1712904642381,-500.0,0.0002767,2]
[322230426,1712904642390,-500.0,0.0002767,2]
[322230427,1712904642399,-500.0,0.0002767,2]
[322230428,1712904642408,-500.0,0.0002767,2]
[322230429,1712904642417,-202.284178,0.0002767,2]
[322230430,1712904642427,-202.284178,0.0002767,2]
[322230431,1712904642436,-171.100761,0.0002767,2]
[322230432,1712904642446,-171.100761,0.0002767,2]
[322230433,1712904642456,-500.0,0.00027671,2]
[322230434,1712904642466,-500.0,0.00027671,2]
[322230435,1712904642475,-500.0,0.00027671,2]
[322230436,1712904642483,-883.83,0.00027671,2]
[322230437,1712904642493,-500.0,0.00027671,2]
[322230438,1712904642502,-551.81129447,0.00027671,2]
[322230439,1712904642512,-505.20185528,0.00027671,2]
[322230440,1712904642521,-500.0,0.00027671,2]
[322230441,1712904642596,-500.0,0.00027671,2]
[322230442,1712904642606,-503.30332673,0.00027671,2]
[322230443,1712904642615,-500.0,0.00027671,2]
[322230444,1712904642624,-500.0,0.00027671,2]
[322230445,1712904642634,-500.0,0.00027671,2]
[322230446,1712904642643,-500.0,0.00027671,2]
[322230447,1712904642652,-233.5454295,0.00027671,2]
[322230448,1712904642661,-500.0,0.00027671,2]
[322230449,1712904642670,-500.0,0.00027671,2]
[322230450,1712904642679,-501.45130618,0.00027671,2]
[322230451,1712904642689,-503.14677591,0.00027671,2]
[322230452,1712904642698,-644.83993658,0.00027671,2]
[322230453,1712904642707,-481.4714267,0.00027671,2]
[322230454,1712904642716,-507.65843774,0.00027671,2]
[322230455,1712904642726,-500.0,0.00027671,2]
[322230456,1712904642735,-500.0,0.00027671,2]
[322230457,1712904642744,-500.0,0.00027671,2]
[322230458,1712904642754,-1084.66,0.00027671,2]
[322230459,1712904642763,-501.93000688,0.00027671,2]
[322230460,1712904642773,-500.0,0.00027671,2]
[322230461,1712904642783,-500.0,0.00027671,2]
[322230462,1712904642793,-500.0,0.00027671,2]
[322230463,1712904642802,-500.0,0.00027671,2]
[322230464,1712904642812,-500.0,0.00027671,2]
[322230465,1712904642822,-538.49,0.00027671,2]
[322230466,1712904642833,-1570.93,0.00027671,2]
[322230467,1712904642842,-500.0,0.00027671,2]
[322230468,1712904642852,-500.0,0.00027671,2]
[322230469,1712904642862,-500.0,0.00027671,2]
[322230470,1712904642871,-500.0,0.00027671,2]
[322230471,1712904642880,-500.0,0.00027671,2]
[322230472,1712904642889,-500.0,0.00027671,2]
[322230473,1712904642900,-500.0,0.00027671,2]
[322230474,1712904642909,-500.0,0.00027671,2]
[322230476,1712904642918,-500.0,0.00027671,2]
[322230478,1712904642927,-500.0,0.00027671,2]
[322230480,1712904642936,-499.46014579,0.00027671,2]
[322230481,1712904642945,-500.0,0.00027671,2]
[322230482,1712904642955,-500.0,0.00027671,2]
[322230483,1712904642963,-615.32062633,0.00027671,2]
[322230484,1712904642972,-392.7392275,0.00027671,2]
[322230485,1712904642981,-500.0,0.00027671,2]
[322230486,1712904642990,-500.0,0.00027671,2]
[322230487,1712904642999,-500.0,0.00027671,2]
[322230488,1712904643008,-500.0,0.00027671,2]
[322230489,1712904643017,-500.0,0.00027671,2]
[322230490,1712904643026,-500.0,0.00027671,2]
[322230491,1712904643035,-500.0,0.00027671,2]
[322230492,1712904643044,-500.0,0.00027671,2]
[322230493,1712904643053,-500.0,0.00027671,2]
[322230494,1712904643064,-500.0,0.00027671,2]
[322230495,1712904643073,-500.0,0.00027671,2]
[322230497,1712904643081,-500.0,0.00027671,2]
[322230498,1712904643091,-678.93,0.00027671,2]
[322230500,1712904643104,-500.0,0.00027671,2]
[322230502,1712904643113,-500.0,0.00027671,2]
[322230504,1712904643122,-500.0,0.00027671,2]
[322230506,1712904643131,-500.0,0.00027671,2]
[322230508,1712904643140,-500.0,0.00027671,2]
[322230510,1712904643149,-500.0,0.00027671,2]
[322230512,1712904643158,-500.0,0.00027671,2]
[322230514,1712904643168,-1493.32,0.00027671,2]
[322230516,1712904643177,-2017.45,0.00027671,2]
[322230518,1712904643186,-500.0,0.00027671,2]
[322230520,1712904643195,-500.0,0.00027671,2]
[322230522,1712904643204,-500.0,0.00027671,2]
[322230524,1712904643213,-500.0,0.00027671,2]
[322230525,1712904643222,-1052.14,0.00027671,2]
[322230528,1712904643232,-500.0,0.00027671,2]
[322230529,1712904643241,-1364.16,0.00027671,2]
[322230531,1712904643251,-500.0,0.00027671,2]
[322230533,1712904643260,-500.0,0.00027671,2]